[Event "2025 Chess.com Botwinnik Rapid toernooi"]
[Site "Zoetermeer, Netherlands"]
[Date "????.??.??"]
[Round "3.8"]
[White "Tjin a Lien, Jie-Ren"]
[Black "Brouwer, Cor"]
[Result "1/2-1/2"]
[TimeControl "15+5"]
[WhiteFideId "8636155"]
[BlackFideId "7356514"]
[WhiteElo "1846"]
[BlackElo "1723"]

1. e4 {[%clk 00:15:07]} {[%emt 00:00:02]} e5 {[%clk 00:15:08]} {[%emt
00:00:02]} 2. Nf3 {[%clk 00:15:10]} {[%emt 00:00:02]} d6 {[%clk 00:15:13]} 3.
Bc4 {[%clk 00:15:08]} {[%emt 00:00:07]} Be7 {[%clk 00:15:04]} {[%emt 00:00:13]}
4. d3 {[%clk 00:15:01]} {[%emt 00:00:12]} h6 {[%clk 00:14:48]} {[%emt
00:00:20]} 5. a4 {[%clk 00:15:04]} {[%emt 00:00:04]} Nf6 {[%clk 00:14:51]}
{[%emt 00:00:02]} 6. c3 {[%clk 00:15:02]} {[%emt 00:00:06]} O-O {[%clk
00:14:45]} {[%emt 00:00:11]} 7. h3 {[%clk 00:13:36]} {[%emt 00:01:31]} c5
{[%clk 00:14:30]} {[%emt 00:00:20]} 8. O-O {[%clk 00:13:26]} {[%emt 00:00:14]}
Nc6 {[%clk 00:14:33]} {[%emt 00:00:03]} 9. Re1 {[%clk 00:13:04]} {[%emt
00:00:27]} Bd7 {[%clk 00:14:23]} {[%emt 00:00:14]} 10. Nbd2 {[%clk 00:12:45]}
{[%emt 00:00:24]} Kh7 {[%clk 00:14:15]} {[%emt 00:00:13]} 11. Nf1 {[%clk
00:12:09]} {[%emt 00:00:40]} g6 {[%clk 00:13:45]} {[%emt 00:00:35]} 12. Ng3
{[%clk 00:12:09]} {[%emt 00:00:05]} Be6 {[%clk 00:13:17]} {[%emt 00:00:34]} 13.
Bxe6 {[%clk 00:11:44]} {[%emt 00:00:30]} fxe6 {[%clk 00:13:19]} {[%emt
00:00:03]} 14. d4 {[%clk 00:11:42]} {[%emt 00:00:06]} Ng8 {[%clk 00:13:06]}
{[%emt 00:00:19]} 15. dxe5 {[%clk 00:11:08]} {[%emt 00:00:40]} dxe5 {[%clk
00:13:07]} {[%emt 00:00:03]} 16. Qxd8 {[%clk 00:11:01]} {[%emt 00:00:12]} Raxd8
{[%clk 00:13:10]} {[%emt 00:00:02]} 17. Be3 {[%clk 00:10:57]} {[%emt 00:00:09]}
b6 {[%clk 00:12:59]} {[%emt 00:00:17]} 18. Red1 {[%clk 00:10:24]} {[%emt
00:00:37]} Nf6 {[%clk 00:12:13]} {[%emt 00:00:52]} 19. Kf1 {[%clk 00:07:29]}
{[%emt 00:03:00]} Kg7 {[%clk 00:12:09]} {[%emt 00:00:08]} 20. Ke2 {[%clk
00:07:32]} {[%emt 00:00:02]} Rxd1 {[%clk 00:11:36]} {[%emt 00:00:39]} 21. Rxd1
{[%clk 00:07:33]} {[%emt 00:00:04]} Rd8 {[%clk 00:11:27]} {[%emt 00:00:13]} 22.
Rxd8 {[%clk 00:07:30]} {[%emt 00:00:08]} Bxd8 {[%clk 00:11:28]} {[%emt
00:00:05]} 23. Kd3 {[%clk 00:07:30]} {[%emt 00:00:05]} Bc7 {[%clk 00:10:27]}
{[%emt 00:01:06]} 24. Kc4 {[%clk 00:06:34]} {[%emt 00:01:01]} a6 {[%clk
00:10:31]} {[%emt 00:00:02]} 25. Ne2 {[%clk 00:05:16]} {[%emt 00:01:22]} Nxe4
{[%clk 00:10:22]} {[%emt 00:00:13]} 26. Kd3 {[%clk 00:05:02]} {[%emt 00:00:19]}
Nd6 {[%clk 00:10:02]} {[%emt 00:00:25]} 27. Ng3 {[%clk 00:04:56]} {[%emt
00:00:11]} c4+ {[%clk 00:09:23]} {[%emt 00:00:45]} 28. Kc2 {[%clk 00:04:34]}
{[%emt 00:00:27]} e4 {[%clk 00:09:10]} {[%emt 00:00:18]} 29. Nd2 {[%clk
00:04:12]} {[%emt 00:00:27]} b5 {[%clk 00:08:51]} {[%emt 00:00:24]} 30. axb5
{[%clk 00:03:58]} {[%emt 00:00:19]} axb5 {[%clk 00:08:54]} {[%emt 00:00:02]} 31.
Ngxe4 {[%clk 00:03:52]} {[%emt 00:00:10]} Nxe4 {[%clk 00:08:55]} {[%emt
00:00:05]} 32. Nxe4 {[%clk 00:03:55]} {[%emt 00:00:01]} g5 {[%clk 00:08:35]}
{[%emt 00:00:25]} 33. b3 {[%clk 00:02:46]} {[%emt 00:01:15]} Kg6 {[%clk
00:08:16]} {[%emt 00:00:23]} 34. bxc4 {[%clk 00:02:29]} {[%emt 00:00:22]} bxc4
{[%clk 00:08:20]} {[%emt 00:00:02]} 35. Nd2 {[%clk 00:02:32]} {[%emt 00:00:02]}
Na5 {[%clk 00:07:28]} {[%emt 00:00:56]} 36. Bd4 {[%clk 00:02:18]} {[%emt
00:00:19]} h5 {[%clk 00:07:20]} {[%emt 00:00:13]} 37. g4 {[%clk 00:02:18]}
{[%emt 00:00:05]} hxg4 {[%clk 00:07:22]} {[%emt 00:00:03]} 38. hxg4 {[%clk
00:02:22]} {[%emt 00:00:01]} Bf4 {[%clk 00:07:19]} {[%emt 00:00:08]} 39. Bb6
{[%clk 00:01:44]} {[%emt 00:00:43]} Bxd2 {[%clk 00:07:13]} {[%emt 00:00:11]} 40.
Kxd2 {[%clk 00:01:47]} {[%emt 00:00:01]} Nc6 {[%clk 00:07:00]} {[%emt
00:00:18]} 41. Bd4 {[%clk 00:01:10]} {[%emt 00:00:42]} e5 {[%clk 00:06:36]}
{[%emt 00:00:30]} 42. Bc5 {[%clk 00:01:11]} {[%emt 00:00:04]} Kf6 {[%clk
00:06:33]} {[%emt 00:00:08]} 43. Ke3 {[%clk 00:01:14]} {[%emt 00:00:02]} Ke6
{[%clk 00:06:36]} {[%emt 00:00:02]} 44. Ke4 {[%clk 00:01:03]} {[%emt 00:00:16]}
Na5 {[%clk 00:06:11]} {[%emt 00:00:31]} 45. Bb4 {[%clk 00:00:53]} {[%emt
00:00:14]} Nc6 {[%clk 00:06:11]} {[%emt 00:00:05]} 46. Ba3 {[%clk 00:00:51]}
{[%emt 00:00:08]} Nd8 {[%clk 00:06:05]} {[%emt 00:00:10]} 47. Bc1 {[%clk
00:00:53]} {[%emt 00:00:03]} Nf7 {[%clk 00:06:09]} {[%emt 00:00:02]} 48. Be3
{[%clk 00:00:55]} {[%emt 00:00:03]} Nd6+ {[%clk 00:06:08]} {[%emt 00:00:06]} 49.
Kf3 {[%clk 00:00:56]} {[%emt 00:00:04]} Kf6 {[%clk 00:05:42]} {[%emt 00:00:31]}
50. Bc5 {[%clk 00:00:41]} {[%emt 00:00:21]} Nb7 {[%clk 00:05:15]} {[%emt
00:00:32]} 51. Bb6 {[%clk 00:00:39]} {[%emt 00:00:07]} Nd6 {[%clk 00:05:13]}
{[%emt 00:00:06]} 52. Bc7 {[%clk 00:00:33]} {[%emt 00:00:11]} Nb5 {[%clk
00:05:11]} {[%emt 00:00:07]} 53. Ba5 {[%clk 00:00:36]} {[%emt 00:00:01]} Nd6
{[%clk 00:05:12]} {[%emt 00:00:04]} 54. Ke3 {[%clk 00:00:40]} {[%emt 00:00:02]}
Ke6 {[%clk 00:05:09]} {[%emt 00:00:08]} 55. Bd8 {[%clk 00:00:39]} {[%emt
00:00:05]} Nf7 {[%clk 00:05:03]} {[%emt 00:00:12]} 56. Bc7 {[%clk 00:00:41]}
{[%emt 00:00:03]} Kd5 {[%clk 00:05:02]} {[%emt 00:00:05]} 57. f3 {[%clk
00:00:40]} {[%emt 00:00:07]} Nh6 {[%clk 00:04:56]} {[%emt 00:00:10]} 58. Bd8
{[%clk 00:00:38]} {[%emt 00:00:07]} Nf7 {[%emt 00:00:48]} 59. Ke4+ Ke6 60. Ke3
Kd5 1/2-1/2

[Event "2025 Chess.com Botwinnik Rapid toernooi"]
[Site "Zoetermeer, Netherlands"]
[Date "????.??.??"]
[Round "4.1"]
[White "Smeets, Kobe"]
[Black "Lai, Hing Ting"]
[Result "0-1"]
[TimeControl "15+5"]
[WhiteTitle "FM"]
[BlackTitle "IM"]
[WhiteFideId "8659420"]
[BlackFideId "8324987"]
[WhiteElo "2364"]
[BlackElo "2484"]

1. e4 {[%clk 00:15:08]} {[%emt 00:00:02]} c6 {[%clk 00:15:09]} {[%emt
00:00:02]} 2. Nc3 {[%clk 00:15:07]} {[%emt 00:00:05]} d5 {[%clk 00:15:12]}
{[%emt 00:00:02]} 3. d4 {[%clk 00:15:11]} a6 {[%clk 00:15:16]} {[%emt
00:00:02]} 4. Nf3 {[%clk 00:15:09]} {[%emt 00:00:07]} Bg4 {[%clk 00:15:19]}
{[%emt 00:00:02]} 5. h3 {[%clk 00:14:59]} {[%emt 00:00:14]} Bh5 {[%clk
00:15:10]} {[%emt 00:00:14]} 6. Be2 {[%clk 00:15:02]} {[%emt 00:00:02]} e6
{[%clk 00:15:07]} {[%emt 00:00:09]} 7. O-O {[%clk 00:14:57]} {[%emt 00:00:10]}
Nf6 {[%clk 00:14:29]} {[%emt 00:00:43]} 8. e5 {[%clk 00:14:47]} {[%emt
00:00:15]} Nfd7 {[%clk 00:14:32]} {[%emt 00:00:01]} 9. Bg5 {[%clk 00:14:21]}
{[%emt 00:00:30]} Be7 {[%clk 00:14:23]} {[%emt 00:00:15]} 10. Bxe7 {[%clk
00:14:18]} {[%emt 00:00:08]} Qxe7 {[%clk 00:14:26]} {[%emt 00:00:02]} 11. Qd2
{[%clk 00:14:21]} {[%emt 00:00:01]} c5 {[%clk 00:14:23]} {[%emt 00:00:08]} 12.
dxc5 {[%clk 00:13:29]} {[%emt 00:00:58]} Bxf3 {[%clk 00:13:16]} {[%emt
00:01:11]} 13. Bxf3 {[%clk 00:13:33]} {[%emt 00:00:01]} Qxc5 {[%clk 00:13:01]}
{[%emt 00:00:19]} 14. Rfe1 {[%clk 00:12:54]} {[%emt 00:00:44]} Nc6 {[%clk
00:12:52]} {[%emt 00:00:14]} 15. Qg5 {[%clk 00:12:08]} {[%emt 00:00:51]} O-O
{[%clk 00:12:52]} {[%emt 00:00:06]} 16. Qg3 {[%clk 00:11:15]} {[%emt 00:00:58]}
b5 {[%clk 00:12:05]} {[%emt 00:00:52]} 17. Rad1 {[%clk 00:10:04]} {[%emt
00:01:15]} Nb6 {[%clk 00:11:23]} {[%emt 00:00:47]} 18. a3 {[%clk 00:09:12]}
{[%emt 00:00:58]} Nd4 {[%clk 00:10:56]} {[%emt 00:00:32]} 19. Rc1 {[%clk
00:07:53]} {[%emt 00:01:25]} Nc4 {[%clk 00:10:47]} {[%emt 00:00:13]} 20. Nd1
{[%clk 00:07:57]} Nd2 {[%clk 00:08:28]} {[%emt 00:02:24]} 21. Ne3 {[%clk
00:07:45]} {[%emt 00:00:17]} f5 {[%clk 00:07:58]} {[%emt 00:00:35]} 22. exf6
{[%clk 00:05:57]} {[%emt 00:01:53]} N2xf3+ {[%clk 00:07:52]} {[%emt 00:00:11]}
23. gxf3 {[%clk 00:05:52]} {[%emt 00:00:09]} Rxf6 {[%clk 00:07:56]} {[%emt
00:00:02]} 24. Ng4 {[%clk 00:04:32]} {[%emt 00:01:24]} Rg6 {[%clk 00:07:02]}
{[%emt 00:00:59]} 25. b4 {[%clk 00:01:52]} {[%emt 00:02:45]} Qc3 {[%clk
00:06:35]} {[%emt 00:00:31]} 26. Re3 {[%clk 00:01:23]} {[%emt 00:00:34]} Qxe3
{[%clk 00:06:29]} {[%emt 00:00:11]} 27. Nxe3 {[%clk 00:01:19]} {[%emt
00:00:08]} Rxg3+ {[%clk 00:06:32]} {[%emt 00:00:03]} 28. fxg3 {[%clk 00:15:05]}
0-1

[Event "2025 Chess.com Botwinnik Rapid toernooi"]
[Site "Zoetermeer, Netherlands"]
[Date "????.??.??"]
[Round "4.2"]
[White "Grooten, Tommy"]
[Black "Van Vliet, Jeffrey"]
[Result "0-1"]
[TimeControl "15+5"]
[BlackTitle "FM"]
[WhiteFideId "8673632"]
[BlackFideId "7890839"]
[WhiteElo "2209"]
[BlackElo "2387"]

1. d4 {[%clk 00:15:09]} {[%emt 00:11:26]} d6 {[%clk 00:14:56]} {[%emt
00:00:15]} 2. Nf3 {[%clk 00:15:10]} {[%emt 00:00:03]} g6 {[%clk 00:14:58]}
{[%emt 00:00:03]} 3. c4 {[%clk 00:15:13]} {[%emt 00:00:02]} Bg7 {[%clk
00:15:02]} {[%emt 00:00:02]} 4. e4 {[%clk 00:15:07]} {[%emt 00:00:10]} Nc6
{[%clk 00:15:03]} {[%emt 00:00:04]} 5. Be3 {[%clk 00:15:08]} {[%emt 00:00:04]}
Bg4 {[%clk 00:15:02]} {[%emt 00:00:06]} 6. Be2 {[%clk 00:15:12]} {[%emt
00:00:02]} Bxf3 {[%clk 00:14:27]} {[%emt 00:00:40]} 7. Bxf3 {[%clk 00:15:15]}
{[%emt 00:00:01]} e5 {[%clk 00:14:29]} {[%emt 00:00:03]} 8. d5 {[%clk
00:15:18]} {[%emt 00:00:02]} Nd4 {[%clk 00:14:30]} {[%emt 00:00:04]} 9. Bxd4
{[%clk 00:15:21]} {[%emt 00:00:02]} exd4 {[%clk 00:14:32]} {[%emt 00:00:02]} 10.
O-O {[%clk 00:15:22]} {[%emt 00:00:05]} Ne7 {[%clk 00:13:38]} {[%emt 00:00:59]}
11. Nd2 {[%clk 00:15:21]} {[%emt 00:00:05]} c5 {[%clk 00:13:39]} {[%emt
00:00:05]} 12. Be2 {[%clk 00:15:12]} {[%emt 00:00:14]} O-O {[%clk 00:13:29]}
{[%emt 00:00:15]} 13. Bd3 {[%clk 00:15:09]} {[%emt 00:00:08]} Qd7 {[%clk
00:13:16]} {[%emt 00:00:18]} 14. Qc2 {[%clk 00:14:30]} {[%emt 00:00:44]} a6
{[%clk 00:12:53]} {[%emt 00:00:28]} 15. a4 {[%clk 00:14:27]} {[%emt 00:00:09]}
Rae8 {[%clk 00:11:30]} {[%emt 00:01:28]} 16. Rae1 {[%clk 00:14:27]} {[%emt
00:00:05]} g5 {[%clk 00:09:15]} {[%emt 00:02:21]} 17. e5 {[%clk 00:12:10]}
{[%emt 00:02:22]} Bxe5 {[%clk 00:09:14]} {[%emt 00:00:05]} 18. Bxh7+ {[%clk
00:11:45]} {[%emt 00:00:30]} Kg7 {[%clk 00:09:17]} {[%emt 00:00:02]} 19. Ne4
{[%clk 00:09:49]} {[%emt 00:02:02]} Qg4 {[%clk 00:06:26]} {[%emt 00:02:55]} 20.
Ng3 {[%clk 00:08:09]} {[%emt 00:01:44]} Rh8 {[%clk 00:05:38]} {[%emt 00:00:54]}
21. Bf5 {[%clk 00:05:38]} {[%emt 00:02:36]} Qh4 {[%clk 00:05:31]} {[%emt
00:00:11]} 22. Bh3 {[%clk 00:05:32]} {[%emt 00:00:10]} Kf8 {[%clk 00:03:35]}
{[%emt 00:02:02]} 23. Qe4 {[%clk 00:02:45]} {[%emt 00:02:53]} Bxg3 {[%clk
00:02:37]} {[%emt 00:01:03]} 24. fxg3 {[%clk 00:02:38]} {[%emt 00:00:12]} Qxe4
{[%clk 00:02:40]} {[%emt 00:00:01]} 25. Rxe4 {[%clk 00:02:42]} Ng6 {[%clk
00:02:39]} {[%emt 00:00:06]} 26. Be6 {[%clk 00:01:43]} {[%emt 00:01:04]} Re7
{[%clk 00:02:36]} {[%emt 00:00:08]} 27. Rg4 {[%clk 00:00:30]} {[%emt 00:01:18]}
Kg7 {[%clk 00:02:18]} {[%emt 00:00:23]} 28. Bf5 {[%clk 00:00:24]} {[%emt
00:00:11]} f6 {[%clk 00:02:14]} {[%emt 00:00:08]} 29. Bxg6 {[%clk 00:00:27]}
{[%emt 00:00:02]} Kxg6 {[%clk 00:02:17]} {[%emt 00:00:01]} 30. h4 {[%clk
00:00:12]} {[%emt 00:00:21]} Kh5 {[%clk 00:01:38]} {[%emt 00:00:44]} 0-1

[Event "2025 Chess.com Botwinnik Rapid toernooi"]
[Site "Zoetermeer, Netherlands"]
[Date "????.??.??"]
[Round "4.3"]
[White "Van der Werf, Mark"]
[Black "Smit, Manuel"]
[Result "0-1"]
[TimeControl "15+5"]
[WhiteTitle "IM"]
[WhiteFideId "7263685"]
[BlackFideId "7689517"]
[WhiteElo "2413"]
[BlackElo "2016"]

1. d4 {[%clk 00:15:07]} {[%emt 00:00:02]} e6 {[%clk 00:15:04]} {[%emt
00:00:06]} 2. c4 {[%clk 00:15:11]} {[%emt 00:00:01]} b6 {[%clk 00:15:06]}
{[%emt 00:00:04]} 3. Nc3 {[%clk 00:15:12]} {[%emt 00:00:03]} Bb7 {[%clk
00:15:09]} {[%emt 00:00:02]} 4. a3 {[%clk 00:15:03]} {[%emt 00:00:14]} f5
{[%clk 00:14:59]} {[%emt 00:00:15]} 5. d5 {[%clk 00:14:57]} {[%emt 00:00:11]}
Nf6 {[%clk 00:15:02]} {[%emt 00:00:02]} 6. g3 {[%clk 00:14:57]} {[%emt
00:00:05]} e5 {[%clk 00:14:25]} {[%emt 00:00:41]} 7. Nf3 {[%clk 00:14:02]}
{[%emt 00:01:01]} d6 {[%clk 00:14:22]} {[%emt 00:00:08]} 8. e4 {[%clk
00:13:52]} {[%emt 00:00:15]} fxe4 {[%clk 00:13:24]} {[%emt 00:01:04]} 9. Ng5
{[%clk 00:13:46]} {[%emt 00:00:09]} Bc8 {[%clk 00:12:40]} {[%emt 00:00:49]} 10.
Bg2 {[%clk 00:13:11]} {[%emt 00:00:40]} Be7 {[%clk 00:12:07]} {[%emt 00:00:38]}
11. O-O {[%clk 00:12:10]} {[%emt 00:01:06]} O-O {[%clk 00:12:05]} {[%emt
00:00:05]} 12. Qc2 {[%clk 00:10:54]} {[%emt 00:01:22]} h6 {[%clk 00:11:23]}
{[%emt 00:00:47]} 13. Ngxe4 {[%clk 00:10:45]} {[%emt 00:00:15]} Nbd7 {[%clk
00:11:11]} {[%emt 00:00:17]} 14. Bd2 {[%clk 00:10:32]} {[%emt 00:00:17]} Nxe4
{[%clk 00:11:00]} {[%emt 00:00:16]} 15. Bxe4 {[%clk 00:09:21]} {[%emt
00:01:16]} Nf6 {[%clk 00:11:00]} {[%emt 00:00:06]} 16. Bf5 {[%clk 00:09:12]}
{[%emt 00:00:13]} Bxf5 {[%clk 00:10:57]} {[%emt 00:00:08]} 17. Qxf5 {[%clk
00:09:16]} {[%emt 00:00:01]} Qd7 {[%clk 00:10:37]} {[%emt 00:00:25]} 18. Qe6+
{[%clk 00:08:52]} {[%emt 00:00:30]} Qxe6 {[%clk 00:10:15]} {[%emt 00:00:27]} 19.
dxe6 {[%clk 00:08:55]} {[%emt 00:00:01]} c6 {[%clk 00:10:14]} {[%emt 00:00:06]}
20. f4 {[%clk 00:08:52]} {[%emt 00:00:08]} e4 {[%clk 00:09:40]} {[%emt
00:00:39]} 21. f5 {[%clk 00:08:05]} {[%emt 00:00:52]} d5 {[%clk 00:09:43]}
{[%emt 00:00:01]} 22. cxd5 {[%clk 00:08:09]} cxd5 {[%clk 00:09:47]} 23. Be3
{[%clk 00:08:04]} {[%emt 00:00:09]} Bc5 {[%clk 00:09:51]} {[%emt 00:00:02]} 24.
Bxc5 {[%clk 00:07:38]} {[%emt 00:00:31]} bxc5 {[%clk 00:09:55]} {[%emt
00:00:01]} 25. Rad1 {[%clk 00:07:03]} {[%emt 00:00:40]} d4 {[%clk 00:09:54]}
{[%emt 00:00:06]} 26. Nb5 {[%clk 00:07:05]} {[%emt 00:00:02]} Rab8 {[%clk
00:08:19]} {[%emt 00:01:41]} 27. Nd6 {[%clk 00:07:04]} {[%emt 00:00:05]} Rxb2
{[%clk 00:07:31]} {[%emt 00:00:53]} 28. e7 {[%emt 00:01:00]} Rfb8 {[%clk
00:07:17]} 29. Rfe1 {[%clk 00:05:38]} {[%emt 00:00:54]} e3 {[%clk 00:07:15]}
{[%emt 00:00:07]} 30. Nc4 {[%clk 00:05:41]} {[%emt 00:00:02]} Kf7 {[%clk
00:06:42]} {[%emt 00:00:37]} 31. Ne5+ {[%clk 00:03:10]} {[%emt 00:02:36]} Kxe7
{[%clk 00:06:44]} {[%emt 00:00:04]} 32. Nc6+ {[%clk 00:03:09]} {[%emt
00:00:06]} Kf7 {[%clk 00:06:29]} {[%emt 00:00:19]} 33. Nxb8 {[%clk 00:02:31]}
{[%emt 00:00:43]} Rxb8 {[%clk 00:06:32]} {[%emt 00:00:02]} 34. Kg2 {[%clk
00:02:26]} {[%emt 00:00:11]} Rb2+ {[%clk 00:06:29]} {[%emt 00:00:08]} 35. Kh3
{[%clk 00:02:29]} {[%emt 00:00:02]} Ne4 {[%clk 00:05:58]} {[%emt 00:00:36]} 36.
Kg4 {[%clk 00:02:06]} {[%emt 00:00:28]} Nf2+ {[%clk 00:06:01]} {[%emt
00:00:02]} 37. Kf4 {[%clk 00:02:10]} {[%emt 00:00:02]} Nxd1 {[%clk 00:06:04]}
{[%emt 00:00:01]} 38. Rxd1 {[%clk 00:02:14]} {[%emt 00:00:01]} Ke7 {[%clk
00:05:11]} {[%emt 00:00:58]} 39. Ke4 {[%clk 00:02:07]} {[%emt 00:00:12]} Kd6
{[%clk 00:05:09]} {[%emt 00:00:07]} 40. h4 {[%clk 00:02:03]} {[%emt 00:00:09]}
Rg2 {[%clk 00:05:05]} {[%emt 00:00:08]} 41. Kf4 {[%clk 00:01:59]} {[%emt
00:00:10]} Kd5 {[%clk 00:05:04]} {[%emt 00:00:05]} 42. g4 {[%clk 00:02:01]}
{[%emt 00:00:03]} c4 {[%clk 00:05:01]} {[%emt 00:00:09]} 43. g5 {[%clk
00:02:04]} {[%emt 00:00:02]} hxg5+ {[%clk 00:05:04]} {[%emt 00:00:01]} 44. hxg5
{[%clk 00:02:08]} Rf2+ {[%clk 00:04:50]} {[%emt 00:00:19]} 45. Kg4 {[%clk
00:02:10]} {[%emt 00:00:03]} Ke4 {[%clk 00:04:52]} {[%emt 00:00:02]} 0-1

[Event "2025 Chess.com Botwinnik Rapid toernooi"]
[Site "Zoetermeer, Netherlands"]
[Date "????.??.??"]
[Round "4.4"]
[White "Tjiam, Dharma"]
[Black "Schrik, Rachid"]
[Result "1-0"]
[TimeControl "15+5"]
[WhiteTitle "IM"]
[BlackTitle "CM"]
[WhiteFideId "6383751"]
[BlackFideId "7623528"]
[WhiteElo "2364"]
[BlackElo "2087"]

1. d4 {[%clk 00:15:07]} {[%emt 00:00:02]} Nf6 {[%clk 00:15:08]} {[%emt
00:00:02]} 2. c4 {[%clk 00:15:09]} {[%emt 00:00:04]} e6 {[%clk 00:15:11]}
{[%emt 00:00:02]} 3. Nc3 {[%clk 00:15:13]} {[%emt 00:00:01]} Bb4 {[%clk
00:15:13]} {[%emt 00:00:02]} 4. e3 {[%clk 00:15:17]} {[%emt 00:00:02]} O-O
{[%clk 00:15:13]} {[%emt 00:00:04]} 5. Bd3 {[%clk 00:15:21]} {[%emt 00:00:02]}
d5 {[%clk 00:15:10]} {[%emt 00:00:07]} 6. Nge2 {[%clk 00:15:15]} {[%emt
00:00:11]} c5 {[%clk 00:14:01]} {[%emt 00:01:15]} 7. a3 {[%clk 00:15:05]}
{[%emt 00:00:16]} Bxc3+ {[%clk 00:13:58]} {[%emt 00:00:07]} 8. bxc3 {[%clk
00:15:08]} {[%emt 00:00:02]} Nc6 {[%clk 00:13:24]} {[%emt 00:00:39]} 9. cxd5
{[%clk 00:14:23]} {[%emt 00:00:50]} exd5 {[%clk 00:13:19]} {[%emt 00:00:09]} 10.
O-O {[%clk 00:14:21]} {[%emt 00:00:07]} c4 {[%clk 00:09:50]} {[%emt 00:03:34]}
11. Bb1 {[%clk 00:14:17]} {[%emt 00:00:08]} Na5 {[%clk 00:08:57]} {[%emt
00:00:59]} 12. Ng3 {[%clk 00:13:47]} {[%emt 00:00:36]} Nb3 {[%clk 00:08:39]}
{[%emt 00:00:22]} 13. Ra2 {[%clk 00:13:51]} {[%emt 00:00:02]} Re8 {[%clk
00:08:25]} {[%emt 00:00:18]} 14. Re2 {[%clk 00:13:35]} {[%emt 00:00:21]} Nxc1
{[%clk 00:08:01]} {[%emt 00:00:30]} 15. Qxc1 {[%clk 00:13:38]} {[%emt
00:00:02]} a5 {[%clk 00:06:43]} {[%emt 00:01:23]} 16. f3 {[%clk 00:12:36]}
{[%emt 00:01:06]} b5 {[%clk 00:05:04]} {[%emt 00:01:44]} 17. e4 {[%clk
00:08:10]} {[%emt 00:04:32]} dxe4 {[%clk 00:04:50]} {[%emt 00:00:18]} 18. fxe4
{[%clk 00:08:13]} {[%emt 00:00:02]} b4 {[%clk 00:04:44]} {[%emt 00:00:12]} 19.
Ref2 {[%clk 00:07:13]} {[%emt 00:01:05]} bxc3 {[%clk 00:03:02]} {[%emt
00:01:47]} 20. Rxf6 {[%clk 00:04:53]} {[%emt 00:02:25]} gxf6 {[%clk 00:03:03]}
{[%emt 00:00:03]} 21. Qh6 {[%clk 00:04:53]} {[%emt 00:00:05]} Qxd4+ {[%clk
00:02:42]} {[%emt 00:00:26]} 22. Kh1 {[%clk 00:04:57]} {[%emt 00:00:01]} f5
{[%clk 00:02:01]} {[%emt 00:00:46]} 23. exf5 {[%clk 00:04:09]} {[%emt
00:00:53]} Qg7 {[%clk 00:01:13]} {[%emt 00:00:53]} 24. Qc6 {[%clk 00:03:39]}
{[%emt 00:00:35]} Ba6 {[%clk 00:00:57]} {[%emt 00:00:22]} 25. Nh5 {[%clk
00:01:58]} {[%emt 00:01:45]} Rec8 {[%clk 00:01:00]} {[%emt 00:00:02]} 26. Qd6
{[%clk 00:01:24]} {[%emt 00:00:39]} Rd8 {[%clk 00:00:52]} {[%emt 00:00:13]} 27.
Qf4 {[%clk 00:01:24]} {[%emt 00:00:05]} Rd4 {[%clk 00:00:16]} {[%emt 00:00:42]}
28. Qe3 {[%clk 00:01:08]} {[%emt 00:00:20]} Qh8 {[%emt 00:01:12]} 29. Qh6
{[%emt 00:00:04]} 1-0